Cogmind - Beta 15 --- EXPLORER MODE // 2025.07.07 @ 19:26:18 // Winter2019/RPGLIKE Player: User15V Result: Smashed by cave-in Performance ------------- Evolutions (0) 0 Regions Visited (2) 400 Robots Destroyed (20) 100 Value Destroyed (543) 543 Prototype IDs (11) 220 Alien Tech Used (0) 0 Bonus (-78) -78 TOTAL SCORE: 1185 Bonus ------- Friendly Fire -78 Cogmind --------- Core Integrity 0/600 Matter 228/300 Energy 119/125 System Corruption 0% Temperature Cool (3) Movement Walking (120) Location -10/Subcaves Parts ------- > --- POWER (1) -------- Light Ion Engine > --- PROPULSION (3) --- Aluminum Leg Aluminum Leg Aluminum Leg > --- UTILITY (3) ------ Disposable Heat Sink Improved Terrain Scanner > --- WEAPON (2) ------- Light Assault Rifle Hammer > --- INVENTORY (3) ---- Light Assault Rifle Subdweller Shrapnel Launcher Datajack Peak State ------------ > --- POWER ------------ Light Ion Engine > --- PROPULSION ------- Aluminum Leg Aluminum Leg Aluminum Leg > --- UTILITY ---------- Disposable Heat Sink Improved Terrain Scanner Light Armor Plating > --- WEAPON ----------- Light Assault Rifle Light Assault Rifle > --- INVENTORY -------- Light Ion Engine Datajack Hammer [Rating: 12] Favorites ----------- Power Light Ion Engine Engine Light Ion Engine Propulsion Aluminum Leg Leg Aluminum Leg Utility Improved Terrain Scanner Device Improved Terrain Scanner Protection Light Armor Plating Weapon Light Assault Rifle Ballistic Gun Light Assault Rifle Launcher Subdweller Shrapnel Launcher Impact Weapon Hammer Build | -11 -10 -10 ------- Run | Yrd Mat Sub Slots Evolved 5 | 5 . . Power . | . . . Propulsion 2 | 2 . . Utility 2 | 2 . . Weapon 1 | 1 . . Parts Attached 11 | 5 2 4 Power 1 | . . 1 Engine 1 | . . 1 Core . | . . . Reactor . | . . . Propulsion 2 | 1 1 . Treads . | . . . Leg 2 | 1 1 . Wheel . | . . . Hover . | . . . Flight . | . . . Utility 5 | 3 1 1 Device 4 | 3 . 1 Storage . | . . . Processor . | . . . Hackware . | . . . Protection 1 | . 1 . Artifact . | . . . Weapon 3 | 1 . 2 Energy Gun . | . . . Energy Cannon . | . . . Ballistic Gun 1 | 1 . . Ballistic Cannon . | . . . Launcher 1 | . . 1 Special Weapon . | . . . Impact Weapon 1 | . . 1 Slashing Weapon . | . . . Piercing Weapon . | . . . Special Melee Weapon . | . . . Unidentified Prototypes . | . . . Parts Lost 1 | . . 1 Power . | . . . Propulsion . | . . . Utility 1 | . . 1 Weapon . | . . . Highest Loss Streak 1 | . . 1 To Critical Strikes . | . . . Average Backups 2 | 2 2 3 Power . | . 1 . Propulsion . | . . . Utility . | . . . Weapon 1 | . . 1 Tool/Special . | . . . Unused Backups 4 | . . 4 Power 1 | . . 1 Propulsion 1 | . . 1 Utility . | . . . Weapon 1 | . . 1 Tool/Special 1 | . . 1 Average Slot Usage (%) 91 | . 89 92 Engine 11 | . 11 11 Leg 32 | . 30 33 Device 20 | . 14 21 Protection 5 | . 11 4 Ballistic Gun 13 | . 22 12 Impact Weapon 8 | . . 9 Peak Build Rating 12 | 10 11 12 Average Rating 10 | 7 10 11 On Entrance 8 | 4 10 10 Naked Turns . | . . . Heaviest Build 11 | 10 10 11 Greatest Support 35 | 25 35 35 Greatest Overweight (x) . | . . . Average Overweight (x) . | . . . Largest Inventory Capacity 3 | 3 3 3 Average Capacity 3 | 3 3 3 Most Carried 3 | 3 3 3 Average Carried 2 | 2 2 2 Final Capacity 3 | 3 3 3 Final Carried 3 | 2 3 3 Class Distribution -------------------- 92% | Hacker-Mutant 7% | Hacker-Skirmisher Dominant Class ---------------- Hacker-Mutant | -10/Materials Hacker-Mutant | -10/Subcaves Resources | -11 -10 -10 ----------- Run | Yrd Mat Sub Matter Collected 394 | 258 56 80 Remotely . | . . . Salvage Created 595 | 90 267 238 Parts 28 | 6 9 13 Haulers Intercepted 1 | . 1 . Recyclers Shooed 1 | 1 . . Parts Field Recycled . | . . . Retrieved Matter . | . . . Parts Self-Destructed . | . . . Prevented . | . . . Kills | -11 -10 -10 ------- Run | Yrd Mat Sub Combat Hostiles Destroyed 15 | . 4 11 Melee 3 | . . 3 Guns 6 | . 4 2 AOE 4 | . . 4 Classes Destroyed 9 | 2 2 5 Tunneler 1 | 1 . . Hauler 1 | . 1 . Recycler 1 | 1 . . Turret 2 | . . 2 Swarmer 4 | . . 4 Grunt 5 | . 4 1 Sentry 1 | . . 1 Artisan 1 | . . 1 Subdweller 5 | . . 5 Best Kill Streak 6 | 2 4 6 Combat Bots Only 4 | . 4 4 Max Kills in Single Turn 4 | 1 1 4 Gunslinging . | . . . Exploded 4 | . . 4 Melee 1 | . . 1 Uniques/NPCs Destroyed . | . . . Combat | -11 -10 -10 -------- Run | Yrd Mat Sub Hostile Shots Fired 165 | . 44 121 Missed 49 | . 12 37 Hits 116 | . 32 84 Projectile 116 | . 32 84 Critical Strikes 3 | . . 3 Damage Taken 1470 | . 235 1235 Core 1112 | . 156 956 Absorbed by Shields . | . . . Redirected to Core 777 | . 116 661 Ignored by Resistances 701 | . 144 557 Core Remaining (%) 100 | 100 . . Volleys Fired 41 | 4 18 19 Largest 2 | 2 2 2 Hottest 40 | 40 40 40 Shots Fired 79 | 8 36 35 Gun 76 | 8 36 32 Cannon . | . . . Launcher 3 | . . 3 Special . | . . . Kinetic 79 | 8 36 35 Thermal . | . . . Explosive . | . . . Electromagnetic . | . . . Robot Hit Streak 24 | 3 7 24 Robot Miss Streak 1 | 1 1 1 Penetration Max . | . . . Secondary Targets 1 | . 1 . Max Gunslinging Chain 1 | . 1 . Shots Hit Robots 106 | 5 30 71 Core Hits 33 | 3 13 17 Critical Kills 1 | . . 1 Critical Parts Destroyed 3 | . . 3 Critical Strikes 5 | . . 5 Smash 5 | . . 5 Melee Attacks 49 | . . 49 Impact 49 | . . 49 Slashing . | . . . Piercing . | . . . Sneak Attacks 1 | . . 1 Combat Hostiles . | . . . Follow-up Attacks . | . . . Damage Inflicted 1776 | 44 236 1496 Guns 533 | 44 236 253 Cannons . | . . . Explosions 393 | . . 393 Melee 850 | . . 850 Ramming . | . . . Kinetic 926 | 44 236 646 Thermal . | . . . Explosive . | . . . Electromagnetic . | . . . Impact 850 | . . 850 Slashing . | . . . Piercing . | . . . Highest Corruption . | . . . Average Corruption . | . . . Corruption Purged . | . . . Corruption Blocked . | . . . Overload Shots . | . . . Overflow Damage 114 | . . 114 Projectiles . | . . . Explosions 18 | . . 18 Melee 96 | . . 96 Knockbacks 1 | . . 1 Impact 1 | . . 1 Kinetic . | . . . Secondary . | . . . Self-Inflicted Damage 16 | . . 16 Shots 1 | . . 1 Rammed . | . . . Targets Rammed . | . . . Kicked . | . . . Crushed . | . . . Highest Temperature 157 | 6 157 . Average Temperature 70 | 4 80 . Received Heat Transfer 594 | . 213 381 Siege Activations . | . . . Martial Activations . | . . . Shielding Activations . | . . . Robots Disrupted . | . . . Combat Hostiles . | . . . Robots Corrupted 3 | . . 3 Combat Hostiles 2 | . . 2 Parts Fried 2 | . . 2 Impact Corruptions 7 | . . 7 Robots Melted . | . . . Combat Hostiles . | . . . Parts Melted . | . . . Heat Transferred . | . . . Parts Sabotaged . | . . . Parts Stolen . | . . . Parts Stripped . | . . . Power Chain Reactions . | . . . Alert | -11 -10 -10 ------- Run | Yrd Mat Sub Maximum Alert Level . | . . . Low Security (%) 100 | 100 100 . Level 1 . | . . . Level 2 . | . . . Level 3 . | . . . Level 4 . | . . . Level 5 . | . . . High Security . | . . . Max Security . | . . . Peak Influence 75 | 10 75 . Initial . | . . . Average 18 | 1 22 . Influence Increases 312 | 10 97 205 Destroy 0b10 Robot/C 240 | . 80 160 Destroy 0b10 Robot/NC 15 | 10 5 . Destroy Leader 12 | . 12 . Lose Combat Pursuer 45 | . . 45 Influence Decreases 312 | 10 97 205 Time Decay 312 | 10 97 205 Squads Dispatched . | . . . Investigation . | . . . Extermination . | . . . Reinforcement . | . . . Assault . | . . . Garrison . | . . . Intercept . | . . . Searches Triggered . | . . . Construction Impeded . | . . . Haulers Reinforced . | . . . Active Scanning Responses . | . . . Cargo Convoy Interrupts . | . . . Stealth | -11 -10 -10 --------- Run | Yrd Mat Sub Distress Signals . | . . . Communications Jammed . | . . . Distress Signals . | . . . Times Spotted 20 | . 5 15 Peak Tracking Total 6 | . 4 6 Tactical Retreats 1 | . . 1 Traps | -11 -10 -10 ------- Run | Yrd Mat Sub Traps Triggered . | . . . Indirectly . | . . . Trap Hack Attempts . | . . . Triggered . | . . . Disarmed . | . . . Reprogrammed . | . . . Reused . | . . . Traps Extracted . | . . . Installed . | . . . Triggered . | . . . Machines | -11 -10 -10 ---------- Run | Yrd Mat Sub Machines Disabled 3 | . . 3 Max in Single Turn 3 | . . 3 Machines Repaired . | . . . Machines Dismantled . | . . . Machines Sabotaged . | . . . Overloaded Fab Kills . | . . . Hacking | -11 -10 -10 --------- Run | Yrd Mat Sub Machines Accessed 2 | . . 2 Terminals . | . . . Fabricators . | . . . Repair Stations . | . . . Recycling Units . | . . . Scanalyzers . | . . . Garrison Access . | . . . Total Hacks 5 | . . 5 Successful 5 | . . 5 Failed . | . . . Catastrophic . | . . . Database Lockouts . | . . . Manual . | . . . Terminals . | . . . Fabricators . | . . . Repair Stations . | . . . Recycling Units . | . . . Scanalyzers . | . . . Garrison Access . | . . . Terminal Hacks 5 | . . 5 Record 4 | . . 4 Proto ID Catalog 1 | . . 1 Fabricator Hacks . | . . . Repair Station Hacks . | . . . Recycling Unit Hacks . | . . . Scanalyzer . | . . . Garrison Access Hacks . | . . . Unauthorized Hacks . | . . . Terminals . | . . . Fabricators . | . . . Repair Stations . | . . . Recycling Units . | . . . Scanalyzers . | . . . Garrison Access . | . . . Data Cores Recovered . | . . . Used . | . . . Hacking Detections . | . . . Full Trace Events . | . . . Feedback Events . | . . . Feedback Blocked . | . . . Robot Schematics Acquired . | . . . Robots Built . | . . . Authchips . | . . . Time . | . . . Total Robot Build Rating . | . . . Part Schematics Acquired . | . . . Parts Built . | . . . Authchips . | . . . Time . | . . . Total Part Build Rating . | . . . Parts Repaired . | . . . Time . | . . . Parts Recycled . | . . . Recycled Matter . | . . . Retrieved Matter . | . . . Retrieved Components . | . . . Parts Scanalyzed . | . . . Part Schematics Acquired . | . . . Parts Damaged . | . . . Bothacking | -11 -10 -10 ------------ Run | Yrd Mat Sub Used RIF Installer . | . . . Robots Hacked . | . . . Non-combat . | . . . Combat . | . . . Robot Hacks Applied . | . . . Relay Couplers Released . | . . . Fabnet Peak Effective % . | . . . Robots Rewired . | . . . Allies Hacked . | . . . Hacks Repelled . | . . . Allies | -11 -10 -10 -------- Run | Yrd Mat Sub Total Allies . | . . . Largest Group . | . . . Highest-Rated Group . | . . . Highest-Rated Ally . | . . . Total Orders . | . . . Ally Attacks . | . . . Total Damage . | . . . Kills . | . . . Allies Corrupted . | . . . Allies Melted . | . . . Intel | -11 -10 -10 ------- Run | Yrd Mat Sub Active Infowar (turns) 1616 | 34 249 1333 Sensors 116 | 34 82 . Terrain 1614 | 32 249 1333 Robot Analysis Total . | . . . Derelict Logs Recovered 2 | . . 2 Drone Launches . | . . . Drone Recoveries . | . . . Exploration | -11 -10 -10 ------------- Run | Yrd Mat Sub Turns Passed 1635 | 53 249 1333 Spaces Moved 955 | 26 96 833 Core . | . . . Treads . | . . . Legs 955 | 26 96 833 Wheels . | . . . Hover . | . . . Flight . | . . . Fastest Speed 120 | 120 120 120 Average Speed 120 | 120 120 120 Slowest Speed 120 | 120 120 120 Overloaded Moves . | . . . Propulsion Burnouts . | . . . Robots Hopped . | . . . Potential Cave-ins 1 | . . 1 Cave-ins Triggered 1 | . . 1 Exploration Rate (%) 34 | 2 27 75 Regions Visited 2 Branch Regions 1 Pre-discovered Areas 1 | . . 1 Known Exits Taken 2 | 1 1 . Unknown Exits Taken . | . . . Scrap Searched 2 | . . 2 Spaces Dug 2 | . . 2 Terrain Destroyed 31 | . . 31 Melee 2 | . . 2 Projectile . | . . . AOE 29 | . . 29 Terrain Rammed . | . . . Walls Destroyed . | . . . Machines Disabled . | . . . Actions | -11 -10 -10 --------- Run | Yrd Mat Sub Total 1293 | 41 202 1050 Wait 200 | . 82 118 Move 952 | 25 95 832 Hop . | . . . Pick Up 11 | 6 3 2 Fast Attach 2 | 1 . 1 Attach 5 | 3 2 . Detach . | . . . Swap 6 | 1 . 5 Drop 5 | 1 2 2 Fire 41 | 4 18 19 Melee 49 | . . 49 Ram . | . . . Kick . | . . . Crush . | . . . Escape Stasis . | . . . Rewire . | . . . Trap . | . . . Miscellaneous 22 | . . 22 Route ------- -11/Scrapyard -10/Materials (discovered 2 exits: *Min / *Sub) -10/Subcaves (discovered 4 exits: *Mat x2 / *Rec / [*Scr]) History --------- Turn | Location | Event 1 | -11/Scrapyard | Upgraded with Propulsion slot (x2) 1 | -11/Scrapyard | Upgraded with Utility slot (x2) 1 | -11/Scrapyard | Upgraded with Weapon slot (x1) 1 | -11/Scrapyard | Identified exit to Materials 1 | -11/Scrapyard | Discovered exit to Materials (range 2) 54 | -11/Scrapyard | Entered Materials 195 | -10/Materials | Identified exit to Mines 195 | -10/Materials | Discovered exit to Mines (range 14) 237 | -10/Materials | Identified exit to Subcaves 237 | -10/Materials | Discovered exit to Subcaves (range 6) 303 | -10/Materials | Entered Subcaves 304 | -10/Subcaves | Approached by a straggling Scientist 334 | -10/Subcaves | Core integrity fell below 50% 438 | -10/Subcaves | Build established: Hacker-Mutant 443 | -10/Subcaves | Learned Materials stockpile data 465 | -10/Subcaves | Scientist uncovered a shortcut to Scraptown 466 | -10/Subcaves | Identified exit to Recycling 466 | -10/Subcaves | Discovered exit to Recycling (range 15) 715 | -10/Subcaves | Reached level 2 747 | -10/Subcaves | Identified exit to Materials 747 | -10/Subcaves | Discovered exit to Materials (range 16) 908 | -10/Subcaves | A swath of the cavern ceiling suddenly collapsed 1111 | -10/Subcaves | Discovered exit to Materials (range 8) 1222 | -10/Subcaves | Shifting Twisted Machinery released Mak. Flight Unit 1222 | -10/Subcaves | Shifting Twisted Machinery released Sub. Shrapnel Launcher 1289 | -10/Subcaves | Visited Clippyterm 1293 | -10/Subcaves | Learned location of Deep Caves (-7) 1293 | -10/Subcaves | Learned Research machine intel 1379 | -10/Subcaves | Learned Materials garrison access intel 1394 | -10/Subcaves | Visited 4L-MR0's lab 1636 | -10/Subcaves | Crushed by falling debris 1636 | -10/Subcaves | Smashed by cave-in Last Messages --------------- Tripod Weapons Platform Flightbrick Gun Armor Tower Shield Power Bank Rainbow Chip VL-GR5's Exoskeleton "Deathgrip" Powered Cannon 01398_ 4L-MR0 mumbles to no one in particular: "Damn Subs sneaking around stealing my stuff." 01399_ Sneak attack on 4L-MR0. 01399_ Destroyed Lgt. Ion Engine. 01399_ 4L-MR0 system corrupted by crushing effect. 01400_ 4L-MR0 system terminally corrupted. 01400_ Multitool fried. 01400_ 4L-MR0 cries out in pain. 01401_ Acquired 28 matter. 01636_ The unstable cave ceiling collapses. 01636_ Crushed by falling debris. Map ----- +----------------------------------------------------+ | ??????????????############################# | | ?????????????#############################? | | ?????????????############################## | | ?????????##?############################### | | ???????#????############################# " | | ??????#?????#############################"" | | ???????#???########################## ""#"" | | ?????????#??################ *%& "" """"" | | ??????#?#?#?############### "" | | ????????????######### ## # # ## # ## | | ????????????##### ############### | | ?????#???????#### ############### | | ????????#?####### ################ | | ?????????######## ################ | | ?????????#?##### ############### | | ????????#???#### ################ | | ???????######?### ## ################ | | ??????#?#?###### ### ### ############### | | ??????###??#?### ######## ### ######### | | ????????######### ######### ######### | | ??????########## ######## ########## | | ?????#??##?###### ######### ############ | | ??????###??##### ######## ########?### | | ????#?#??#####?## ### ## ############### | | ????#??#######?###### ########?###??? | | ??????#??###?##?##@ # ####?####?#???? | | ?????#?#??############# # #####?##??###??? | | ?????##?#########?# ## #############?##???? | | ????#?#?########?#### # ###############??? | | ????##?#######?###### #####?######?#?? | | ???????############## # ##?##########???? | | ????????######?####?# ### #############???? | | ????????###?############# #############??? | | ??????#?######## ####### #####?######?##??? | | ?????#?########## ###### #######??#?####?## | | ??????############ # ## ################## | | ??????############ ##### ######?#######?##? | | ??????#???####### ### ########?######### | | ??????#??######## ## ########?#?#####? | | ????############## ## # ############### | | ??#?##?########### #?######## | | ##???##?#?######## #######?### | | ???###?#?####?### ############ | | ??######?######## ############ | | #?? ??""" ##?# ############# | | ?#"?""""""" ### ####?########?? | | ##?"" ? """ ## ############### | | ?#"?"""??" ## ###########"" | | #?""? #?" # ## ##########"" | | ?#???" #### ## ## ###########"X | +----------------------------------------------------+ Best States ------------- Heat Dissipation 25 Coolant Potential 50 Energy Generation 10 Energy Capacity 125 Matter Stores 300 Matter Capacity 300 Sight Range 17 Robot Scan Range 14 Terrain Scan Range 16 Terrain Scan Density 510 Armor Coverage 150 Resistance: KI 35 Resistance: TH 35 Resistance: EX 35 Resistance: EM 35 Resistance: I 35 Resistance: S 35 Resistance: P 35 Evasion (%) 55 Offensive Hacking 20 Item Schematics ----------------- None Robot Schematics ------------------ None Fabricated ------------ Nothing Repaired ---------- Nothing Alien Tech Used ----------------- None Achievements -------------- None Challenges ------------ None RPGLIKE | -11 -10 -10 --------- Run | Yrd Mat Sub Levels Raised 1 | . . 1 XP Earned 8250 | 6000 450 1800 XP Spent 5450 | 5450 . . Upgrades 15 | 15 . . Propulsion Slot 2 | 2 . . Utility Slot 2 | 2 . . Weapon Slot 1 | 1 . . Mass Support 1 | 1 . . Inventory Capacity 3 | 3 . . Sight Range 1 | 1 . . Terrain Scan Density 5 | 5 . . Protomatter Created 176 | . . 176 Integrity Restored 501 | . . 501 Core 501 | . . 501 Protomatter Decayed 56 | . . 56 Game ------ Seed FactoryProtonRefractor Manual? 0 Play Time 00:11:16 Cumulative 987.0 hours Start 2025.07.07 @ 05:20:52 End 2025.07.07 @ 19:26:18 Sessions 3 Manual Loads 0 Difficulty Explorer Special Mode Winter2019/RPGLIKE Game No. 281 Rogue 104 Adventurer 111 Explorer 66 Win Type - Total 46 Types 21/8/1/7/2/1/1/1/1/3 Lore% 96 Gallery% 99 Achievement% 96 Wizard Run 0 Options --------- Layout 2 ASCII 0 Keyboard 0 Movement Mouse Keybinds 0 Fullscreen 2 Font 24/Smallcaps Map View 50x44 Zoom Use 0% Tactical HUD 1 Map Filters NONE Filters NONE Steam 1 RUN: ffc8a1f8-e129-4ca8-ba45-eda9e634f609